bitfinex-derivatives/quotes_BTCF0:USTF0_20250211
["timestamp","ask_amount","ask_price","bid_price","bid_amount"]
[1739252305700,0.2033069,98359.0,98354.0,0.002]
[1739252307796,0.2033069,98359.0,98354.0,0.001]
[1739252307998,0.2033069,98359.0,98354.0,0.002]
[1739252326010,0.2033069,98359.0,98355.0,0.18218671]
[1739252327613,0.2033069,98359.0,98355.0,0.18318671]
[1739252328713,0.2033069,98359.0,98355.0,0.18418671]
[1739252329012,0.2033069,98359.0,98355.0,0.002]
[1739252332512,0.15228937,98358.0,98355.0,0.002]
[1739252333105,0.15228937,98358.0,98356.0,0.2033116]
[1739252334404,0.15228937,98358.0,98356.0,0.2043116]
[1739252335503,0.15228937,98358.0,98356.0,0.2053116]
[1739252336502,0.15228937,98359.0,98356.0,0.2053116]
[1739252338110,0.35559607,98359.0,98356.0,0.002]
[1739252341608,0.2033067,98359.0,98356.0,0.18418671]
[1739252343410,0.2033033,98361.0,98358.0,0.2033077]
[1739252343611,0.15228937,98365.0,98363.0,0.2032962]
[1739252344906,0.15228937,98365.0,98363.0,0.001]
[1739252346423,0.15228937,98365.0,98363.0,0.002]
[1739252346820,0.2715303,98367.0,98363.0,0.002]
[1739252348429,0.06824,98367.0,98363.0,0.002]
[1739252348725,0.06824,98367.0,98363.0,0.001]
[1739252348925,0.06824,98367.0,98363.0,0.01190143]
[1739252349229,0.06824,98367.0,98363.0,0.002]
[1739252351329,0.203287,98369.0,98363.0,0.002]
[1739252351529,0.06824,98368.0,98363.0,0.002]
[1739252353437,0.06824,98368.0,98363.0,0.001]
[1739252353643,0.06824,98368.0,98363.0,0.002]
[1739252355442,0.203287,98369.0,98363.0,0.002]
[1739252355443,0.201527,98369.0,98363.0,0.002]
[1739252355843,0.35381637,98369.0,98363.0,0.002]
[1739252356437,0.2032917,98366.0,98363.0,0.002]
[1739252357733,0.2032953,98365.0,98363.0,0.002]
[1739252359147,0.2032953,98365.0,98363.0,0.001]
[1739252359348,0.2032953,98365.0,98363.0,0.002]
[1739252359846,0.2032953,98365.0,98363.0,0.001]
[1739252360142,0.2032953,98365.0,98363.0,0.002]
[1739252370763,0.35558467,98365.0,98363.0,0.002]
[1739252373864,0.15228937,98364.0,98363.0,0.002]
[1739252377561,0.2032953,98365.0,98363.0,0.002]
[1739252378863,0.2032953,98365.0,98363.0,0.001]
[1739252379065,0.2032953,98365.0,98363.0,0.002]
[1739252385169,0.2033123,98356.0,98355.0,0.18218671]
[1739252385367,0.6323123,98356.0,98355.0,0.18218671]
[1739252386671,0.6333123,98356.0,98355.0,0.18318671]
[1739252387058,0.2725123,98356.0,98355.0,0.18318671]
[1739252387261,0.2043123,98356.0,98355.0,0.18318671]
[1739252387671,0.2053123,98356.0,98355.0,0.18418671]
[1739252389673,0.35760167,98356.0,98355.0,0.002]
[1739252393176,0.2053123,98356.0,98355.0,0.002]
[1739252406085,0.35760167,98356.0,98355.0,0.002]
[1739252409481,0.2053123,98356.0,98355.0,0.002]
[1739252428707,0.002,98356.0,98355.0,0.002]
[1739252462531,0.15454435,98356.0,98355.0,0.002]
[1739252467035,0.002,98356.0,98355.0,0.002]
[1739252474136,0.0514422,98356.0,98355.0,0.002]
[1739252477335,0.20333,98348.0,98343.0,0.18218671]
[1739252477539,0.2033314,98347.0,98343.0,0.18218671]
[1739252477936,0.06812,98350.0,98344.0,0.00015252]
[1739252478141,0.2033282,98349.0,98344.0,0.00015252]
[1739252478733,0.002,98347.0,98344.0,0.00015252]
[1739252479540,0.2033302,98348.0,98344.0,0.00015252]
[1739252479745,0.2033316,98347.0,98344.0,0.00115252]
[1739252480045,0.002,98347.0,98346.0,0.2033313]
[1739252480431,0.004,98347.0,98346.0,0.2033313]
[1739252480642,0.004,98347.0,98345.0,0.0321]
[1739252481037,0.2073313,98347.0,98345.0,0.0321]
[1739252481238,0.2083313,98347.0,98346.0,0.001]
[1739252481737,0.2083313,98347.0,98346.0,0.002]
[1739252483342,0.2053313,98347.0,98346.0,0.001]
[1739252483644,0.2073313,98347.0,98346.0,0.001]
[1739252484244,0.2073313,98347.0,98346.0,0.002]
[1739252492050,0.4252313,98347.0,98346.0,0.002]
[1739252492358,0.2033433,98341.0,98340.0,0.18218671]
[1739252492652,0.2714633,98341.0,98340.0,0.18218671]
[1739252494554,0.2734633,98341.0,98340.0,0.18218671]
[1739252495142,0.2764633,98341.0,98340.0,0.18318671]
[1739252496158,0.2764633,98341.0,98340.0,0.001]
[1739252501751,0.6372633,98341.0,98340.0,0.001]
[1739252503252,0.6372633,98341.0,98331.0,0.00015252]
[1739252503253,0.2033619,98332.0,98331.0,0.00015252]
[1739252503466,0.5641619,98332.0,98331.0,0.01019441]
[1739252503654,0.5641619,98332.0,98331.0,0.00015252]
[1739252504547,0.5661619,98332.0,98331.0,0.00015252]
[1739252505447,0.5691619,98332.0,98331.0,0.00015252]
[1739252520356,0.2083619,98332.0,98331.0,0.00015252]
[1739252522366,0.005,98332.0,98331.0,0.00015252]
[1739252522666,0.005,98332.0,98331.0,0.06575252]
[1739252544879,0.00015252,98350.0,98345.0,0.2033338]
[1739252545274,0.20347832,98350.0,98345.0,0.2033338]
[1739252545777,0.20347832,98350.0,98346.0,0.2033326]
[1739252546172,0.20547832,98350.0,98346.0,0.2033326]
[1739252546370,0.20947832,98350.0,98346.0,0.2033326]
[1739252547069,0.20547832,98350.0,98345.0,0.001]
[1739252547265,0.20947832,98350.0,98347.0,0.2033306]
[1739252548369,0.20747832,98350.0,98347.0,0.2033306]
[1739252548864,0.00015252,98350.0,98348.0,0.2033271]
[1739252550267,0.00015252,98350.0,98348.0,0.2043271]
[1739252550483,0.00015252,98350.0,98348.0,0.2053271]
[1739252550979,0.00015252,98350.0,98348.0,0.21546407]
[1739252558781,0.20347852,98350.0,98348.0,0.01213697]
[1739252563185,0.03,98349.0,98348.0,0.01213697]
[1739252564887,0.031,98349.0,98348.0,0.01213697]
[1739252565192,0.032,98349.0,98348.0,0.01213697]
[1739252571694,0.002,98349.0,98348.0,0.01213697]
[1739252575492,0.002,98349.0,98348.0,0.19419833]
[1739252578991,0.002,98349.0,98348.0,0.01213697]
[1739252582803,0.002,98349.0,98348.0,0.002]
[1739252613617,0.002,98349.0,98348.0,0.0327]
[1739252616219,0.002,98349.0,98348.0,0.21479899]
[1739252616619,0.002,98349.0,98348.0,0.18409899]
[1739252619429,0.002,98349.0,98348.0,0.002]
[1739252626037,0.034,98349.0,98348.0,0.002]
[1739252626236,0.10196,98349.0,98348.0,0.002]
[1739252628132,0.034,98349.0,98348.0,0.002]
[1739252635741,0.002,98349.0,98348.0,0.002]
[1739252652055,0.002,98349.0,98348.0,0.18426402]
[1739252654856,0.002,98349.0,98348.0,0.002]
[1739252675266,0.002,98349.0,98348.0,0.5661288]
[1739252679467,0.002,98349.0,98348.0,0.74837125]
[1739252680275,0.0305,98370.0,98362.0,0.2032999]
[1739252680276,0.3608,98368.0,98362.0,0.2032999]
[1739252680469,0.2033164,98354.0,98353.0,0.04975924]
[1739252680672,0.2033164,98354.0,98348.0,0.54560245]
[1739252680875,0.2033012,98362.0,98353.0,0.2033173]
[1739252681073,0.2033035,98361.0,98353.0,0.2033173]
[1739252681266,0.20219447,98363.0,98353.0,0.2033173]
[1739252681473,0.2033091,98358.0,98353.0,0.2033173]
[1739252681673,0.001,98354.0,98353.0,0.2033173]
[1739252682073,0.0634,98357.0,98353.0,0.2033173]
[1739252682274,0.0634,98357.0,98353.0,0.38555975]
[1739252683476,0.0634,98357.0,98353.0,0.39590476]
[1739252683676,0.0634,98357.0,98353.0,0.39690476]
[1739252684272,0.2033164,98354.0,98353.0,0.19258746]
[1739252684483,0.2033164,98354.0,98353.0,0.19358746]
[1739252689475,0.2033164,98354.0,98353.0,0.01134501]
[1739252699093,0.2033164,98354.0,98353.0,0.001]
[1739252707989,0.2667104,98357.0,98355.0,0.2033144]
[1739252709502,0.2033185,98353.0,98352.0,0.00994557]
[1739252709796,0.2033185,98353.0,98352.0,0.01103072]
[1739252710586,0.2033185,98353.0,98352.0,0.01203072]
[1739252711691,0.2033185,98353.0,98352.0,0.0120419]
[1739252712499,0.2033185,98353.0,98352.0,0.19433475]
[1739252714197,0.2033185,98353.0,98352.0,0.18329285]
[1739252716992,0.2033185,98353.0,98352.0,0.001]
[1739252717398,0.5641185,98353.0,98352.0,0.001]
[1739252717603,0.2033247,98350.0,98349.0,0.18229285]
[1739252718893,0.3608,98353.0,98347.0,0.00015252]
[1739252719101,0.5641288,98348.0,98347.0,0.00015252]
[1739252719304,0.6319688,98348.0,98347.0,0.00015252]
[1739252720204,0.6329688,98348.0,98347.0,0.00115252]
[1739252720700,0.8508688,98348.0,98347.0,0.00115252]
[1739252722003,0.86096945,98348.0,98347.0,0.00115252]
[1739252723304,0.2033557,98335.0,98334.0,0.01038411]
[1739252723606,0.5641557,98335.0,98323.0,0.20394832]
[1739252723800,0.0314,98334.0,98323.0,0.20394832]
[1739252724306,0.2347595,98334.0,98331.0,0.00993208]
[1739252725107,0.3025995,98334.0,98331.0,0.00993208]
[1739252726505,0.3025995,98334.0,98332.0,0.00352516]
[1739252731108,0.09924,98334.0,98323.0,0.00015252]
[1739252731409,0.2033704,98328.0,98323.0,0.01018919]
[1739252731602,0.2033704,98328.0,98323.0,0.00015252]
[1739252732603,0.2033704,98328.0,98323.0,0.00815252]
[1739252733410,0.2033704,98328.0,98323.0,0.01115252]
[1739252734517,0.2033704,98328.0,98323.0,0.0215549]
[1739252735708,0.04975924,98333.0,98323.0,0.0215549]
[1739252735910,0.2033761,98326.0,98323.0,0.0215549]
[1739252736408,0.3608,98325.0,98323.0,0.0215549]
[1739252736711,0.2712184,98324.0,98323.0,0.01115252]
[1739252738906,0.2712184,98324.0,98323.0,0.00315252]
[1739252739211,0.2712184,98324.0,98323.0,0.00815252]
[1739252739416,0.2712184,98324.0,98323.0,0.01115252]
[1739252741510,0.6320184,98324.0,98323.0,0.01115252]
[1739252743706,0.42864,98324.0,98323.0,0.01115252]
[1739252743902,0.3608,98324.0,98323.0,0.01115252]
[1739252744104,0.42864,98324.0,98323.0,0.01115252]
[1739252746907,0.3608,98324.0,98323.0,0.01115252]
[1739252747112,0.3608,98324.0,98323.0,0.04425252]
[1739252749915,0.06784,98326.0,98324.0,0.2033784]
[1739252750210,0.3608,98325.0,98324.0,0.2033784]
[1739252751509,0.3608,98325.0,98324.0,0.2103784]
[1739252752206,0.3608,98325.0,98324.0,0.2123784]
[1739252754713,0.2033523,98337.0,98329.0,0.2033675]
[1739252755017,0.2033523,98337.0,98330.0,0.0327]
[1739252755213,0.2033523,98337.0,98330.0,0.0636]
[1739252756409,0.2033523,98337.0,98330.0,0.0646]
[1739252757009,0.2033523,98337.0,98330.0,0.2679652]
[1739252757709,0.2033523,98337.0,98330.0,0.2709652]
[1739252761107,0.2033523,98337.0,98330.0,0.28125194]
[1739252767012,0.41159925,98340.0,98330.0,0.07788674]
[1739252767218,0.2033589,98334.0,98330.0,0.04518674]
[1739252767421,0.2033589,98334.0,98330.0,0.01428674]
[1739252767720,0.0326,98333.0,98330.0,0.01428674]
[1739252768122,0.0326,98333.0,98330.0,0.01128674]
[1739252768322,0.0326,98333.0,98330.0,0.01428674]
[1739252773722,0.0326,98333.0,98331.0,0.2033632]
[1739252775632,0.0326,98333.0,98331.0,0.2053632]
[1739252776126,0.0326,98333.0,98331.0,0.002]
[1739252788738,0.2359609,98333.0,98331.0,0.002]
[1739252793043,0.2033743,98326.0,98325.0,0.24260908]
[1739252793234,0.5641743,98326.0,98325.0,0.24260908]
[1739252793743,0.6283743,98326.0,98325.0,0.24260908]
[1739252794337,0.6283743,98326.0,98325.0,0.25160908]
[1739252796843,0.6283743,98326.0,98325.0,0.009]
[1739252797341,0.2033784,98324.0,98323.0,0.00015252]
[1739252798839,0.2033784,98324.0,98323.0,0.00315252]
[1739252799042,0.2043784,98324.0,98323.0,0.01015252]
[1739252809454,0.2034015,98313.0,98311.0,0.00152562]
[1739252811549,0.2034015,98313.0,98311.0,0.02152562]
[1739252811755,0.2044015,98313.0,98311.0,0.02152562]
[1739252838467,0.2044015,98313.0,98311.0,0.22492942]
[1739252839563,0.001,98313.0,98311.0,0.22492942]
[1739252845666,0.3618,98313.0,98311.0,0.02152562]
[1739252846370,0.2034032,98312.0,98311.0,0.02152562]
[1739252848276,0.2044032,98312.0,98311.0,0.02152562]
[1739252858384,0.2044032,98312.0,98311.0,0.02]
[1739252862087,0.001,98312.0,98311.0,0.02]
[1739252878599,0.001,98312.0,98311.0,0.2024515]
[1739252879390,0.032,98312.0,98311.0,0.1964515]
[1739252879591,0.032,98312.0,98311.0,0.2024515]
[1739252882199,0.032,98312.0,98311.0,0.02]
[1739252885502,0.032,98312.0,98311.0,0.2024515]
[1739252889610,0.032,98312.0,98311.0,0.02]
[1739252903427,0.001,98312.0,98311.0,0.02]
[1739252904128,0.001,98312.0,98311.0,0.03153671]
[1739252905120,0.001,98312.0,98311.0,0.03154678]
[1739252907328,0.001,98312.0,98311.0,0.02]
[1739252907915,0.001,98312.0,98311.0,0.03149789]
[1739252909328,0.001,98312.0,98311.0,0.02]
[1739252910425,0.001,98312.0,98311.0,0.03148563]
[1739252911027,0.001,98312.0,98311.0,0.02]
[1739252911732,0.001,98312.0,98311.0,0.03151772]
[1739252913535,0.001,98312.0,98311.0,0.03153501]
[1739252913728,0.001,98312.0,98311.0,0.02]
[1739252913927,0.001,98312.0,98311.0,0.03154353]
[1739252914430,0.001,98312.0,98311.0,0.82154353]
[1739252914931,0.001,98312.0,98311.0,0.03154353]
[1739252915529,0.001,98312.0,98311.0,0.03150382]
[1739252919750,0.001,98312.0,98311.0,0.03142883]
[1739252921740,0.001,98312.0,98311.0,0.03141931]
[1739252923847,0.001,98312.0,98311.0,0.0313896]
[1739252927142,0.001,98312.0,98311.0,0.02]
[1739252927849,0.001,98312.0,98311.0,0.263811]
[1739252932250,0.001,98312.0,98311.0,0.20288852]
[1739252935874,0.001,98312.0,98311.0,0.21407507]
[1739252940580,0.001,98312.0,98311.0,0.03118655]
[1739252941676,0.001,98312.0,98311.0,0.02]
[1739252957296,0.2189,98312.0,98310.0,0.18302409]
[1739252957492,0.2034053,98311.0,98310.0,0.18302409]
[1739252959592,0.2044053,98311.0,98310.0,0.18702409]
[1739252959892,0.2044053,98311.0,98310.0,0.19002409]
[1739252960799,0.2044053,98311.0,98310.0,0.007]
[1739252964602,0.2034218,98303.0,98296.0,0.2034346]
[1739252964901,0.6318218,98303.0,98296.0,0.2034346]
[1739252966497,0.6338218,98303.0,98302.0,0.00615252]
[1739252973501,0.3628,98303.0,98302.0,0.00615252]
[1739252975004,0.5662218,98303.0,98302.0,0.00615252]
[1739252975801,0.2054218,98303.0,98302.0,0.00615252]
[1739252978815,0.002,98303.0,98302.0,0.00615252]
[1739252983211,0.002,98303.0,98302.0,0.18917661]
[1739252986614,0.002,98303.0,98302.0,0.00615252]
[1739252989525,0.2054218,98303.0,98302.0,0.00615252]
[1739252997927,0.002,98303.0,98302.0,0.00615252]
[1739253014236,0.035,98303.0,98302.0,0.00615252]
[1739253016740,0.068,98303.0,98302.0,0.00615252]
[1739253025541,0.2034383,98295.0,98294.0,0.18304682]
[1739253026745,0.2054383,98295.0,98294.0,0.18404682]
[1739253026945,0.2054383,98295.0,98294.0,0.001]
[1739253027642,0.2064383,98295.0,98294.0,0.001]
[1739253031738,0.003,98295.0,98286.0,0.243811]
[1739253031938,0.5642548,98287.0,98286.0,0.243811]
[1739253032644,0.5642548,98287.0,98282.0,0.00152613]
[1739253032947,0.0933,98286.0,98272.0,0.36403316]
[1739253033841,0.0933,98286.0,98273.0,0.0001526]
[1739253034044,0.0933,98286.0,98276.0,0.24391016]
[1739253034350,0.2034755,98277.0,98276.0,0.24391016]
[1739253035345,0.2034817,98274.0,98273.0,0.0001526]
[1739253035940,0.2034921,98269.0,98268.0,0.30355737]
[1739253038246,0.2044921,98269.0,98268.0,0.30355737]
[1739253038939,0.2054921,98269.0,98268.0,0.30355737]
[1739253039143,0.2035087,98261.0,98259.0,0.0001526]
[1739253039345,0.2035161,98258.0,98252.0,0.0322]
[1739253041348,0.2035179,98257.0,98252.0,0.0322]
[1739253041852,0.07056,98261.0,98247.0,0.00010168]
[1739253041853,0.2035335,98249.0,98247.0,0.00010168]
[1739253043442,0.2045335,98249.0,98247.0,0.00010168]
[1739253047159,0.21480758,98249.0,98247.0,0.00010168]
[1739253048955,0.01127408,98249.0,98247.0,0.00010168]
[1739253049163,0.01127408,98249.0,98247.0,0.20363848]
[1739253049357,0.01127408,98249.0,98248.0,0.0317]
[1739253050560,0.001,98249.0,98248.0,0.0317]
[1739253050760,0.00999339,98256.0,98248.0,0.3925]
[1739253051060,0.2180526,98258.0,98257.0,0.2035169]
[1739253051360,0.1539171,98270.0,98268.0,0.2034935]
[1739253051555,0.1523902,98275.0,98269.0,0.0635]
[1739253051750,0.1523902,98275.0,98271.0,0.2034864]
[1739253052355,0.1523902,98275.0,98272.0,0.203484]
[1739253052552,0.2034856,98273.0,98261.0,0.2040276]
[1739253052763,0.2034982,98267.0,98261.0,0.0315]
[1739253054360,0.2035007,98265.0,98261.0,0.0315]
[1739253056058,0.2055007,98265.0,98261.0,0.0315]
[1739253056261,0.2125007,98265.0,98261.0,0.0315]
[1739253058562,0.2125007,98265.0,98262.0,0.2035065]
[1739253060859,0.011,98265.0,98264.0,0.2035024]
[1739253061060,0.011,98265.0,98264.0,0.5643024]
[1739253061674,0.002,98265.0,98264.0,0.5643024]
[1739253061970,0.2034854,98273.0,98267.0,0.2034956]
[1739253064670,0.2064854,98273.0,98267.0,0.2034956]
[1739253071178,0.2034905,98270.0,98261.0,0.0315]
[1739253071375,0.2034905,98270.0,98263.0,0.2035027]
[1739253071876,0.07596827,98271.0,98261.0,0.0315]
[1739253072080,0.2035012,98265.0,98257.0,0.5643157]
[1739253072990,0.42614001,98270.0,98257.0,0.5643157]
[1739253073173,0.2035034,98264.0,98257.0,0.5643157]
[1739253073481,0.2035136,98259.0,98257.0,0.3608]
[1739253073875,0.033,98258.0,98257.0,0.3608]
[1739253074475,0.033,98258.0,98247.0,0.00162834]
[1739253074676,0.07596827,98257.0,98247.0,0.00162834]
[1739253075486,0.2035355,98248.0,98247.0,0.00162834]
[1739253077785,0.2045355,98248.0,98247.0,0.00162834]
[1739253078174,0.25403114,98248.0,98247.0,0.00162834]
[1739253080078,0.2035604,98236.0,98235.0,0.3608]
[1739253081289,0.203579,98227.0,98226.0,0.00015267]
[1739253082477,0.205579,98227.0,98226.0,0.00015267]
[1739253084379,0.206579,98227.0,98226.0,0.00015267]
[1739253086382,0.274139,98227.0,98226.0,0.00015267]
[1739253086686,0.274139,98227.0,98200.0,0.10040702]
[1739253086687,0.2036156,98210.0,98200.0,0.10040702]
[1739253086885,0.27958277,98210.0,98202.0,0.2036297]
[1739253087087,0.2036169,98209.0,98202.0,0.2036297]
[1739253087287,0.2036194,98208.0,98202.0,0.2036297]
[1739253087483,0.2036243,98206.0,98200.0,0.10040702]
[1739253088081,0.203632,98202.0,98200.0,0.10040702]
[1739253090386,0.203632,98202.0,98200.0,0.1]
[1739253090791,0.204632,98202.0,98200.0,0.1]
[1739253091093,0.001,98202.0,98201.0,0.2036329]
[1739253091298,0.002,98202.0,98200.0,0.1]
[1739253092092,0.002,98202.0,98201.0,0.2036329]
[1739253092590,0.002,98202.0,98201.0,0.9936329]
[1739253093385,0.002,98202.0,98201.0,0.2036329]
[1739253094389,0.01035977,98209.0,98200.0,0.1]
[1739253094579,0.002,98202.0,98201.0,0.2036329]
[1739253095592,0.002,98209.0,98201.0,0.2036329]
[1739253096089,0.001,98209.0,98201.0,0.2036329]
[1739253096286,0.001,98202.0,98201.0,0.2036329]
[1739253096884,0.002,98202.0,98201.0,0.2036329]
[1739253097990,0.001,98202.0,98201.0,0.2036329]
[1739253098985,0.002,98202.0,98201.0,0.2036329]
[1739253100586,0.002,98202.0,98201.0,0.5644329]
[1739253108693,0.00015267,98213.0,98212.0,0.2036101]
[1739253108895,0.00015267,98213.0,98212.0,0.5644101]
[1739253109396,0.00015267,98213.0,98212.0,0.8644101]
[1739253109696,0.15206161,98230.0,98229.0,0.2035749]
[1739253109899,0.15206161,98230.0,98229.0,0.5643749]
[1739253110399,0.1827252,98238.0,98236.0,0.2035598]
[1739253110601,0.05624,98252.0,98247.0,0.2035358]
[1739253110901,0.05624,98252.0,98250.0,0.3608]
[1739253112193,0.05624,98252.0,98250.0,0.5643306]
[1739253112498,0.06724,98252.0,98250.0,0.5643306]
[1739253112699,0.00015267,98259.0,98250.0,0.3608]
[1739253112901,0.00015267,98259.0,98255.0,0.203521]
[1739253114095,0.00015267,98259.0,98255.0,0.564321]
[1739253114297,0.00015267,98259.0,98255.0,0.3608]
[1739253114599,0.00015267,98259.0,98258.0,0.2035148]
[1739253115701,0.00115267,98259.0,98258.0,0.2035148]
[1739253116599,0.00515267,98259.0,98258.0,0.2035148]
[1739253119904,0.07294689,98275.0,98271.0,0.2034867]
[1739253120202,0.07294689,98275.0,98274.0,0.3608]
[1739253121705,0.07894689,98275.0,98274.0,0.3608]
[1739253121906,0.09194689,98275.0,98274.0,0.3608]
[1739253122610,0.07894689,98275.0,98274.0,0.3608]
[1739253122813,0.09394689,98275.0,98274.0,0.3618]
[1739253125607,0.0837,98275.0,98274.0,0.3618]
[1739253132912,0.0525,98275.0,98274.0,0.3618]
[1739253135509,0.021,98275.0,98274.0,0.3618]
[1739253141830,0.021,98275.0,98274.0,0.42928]
[1739253144625,0.00015267,98284.0,98283.0,0.203463]
[1739253144828,0.00015267,98284.0,98283.0,0.564263]
[1739253146027,0.00715267,98284.0,98283.0,0.564263]
[1739253146435,0.15216002,98298.0,98283.0,0.3608]
[1739253146631,0.15216002,98298.0,98297.0,0.564234]
[1739253147039,0.15216002,98298.0,98297.0,1.354234]
[1739253147233,0.35559202,98298.0,98297.0,0.3608]
[1739253148329,0.35959202,98298.0,98297.0,0.3608]
[1739253148638,0.36559202,98298.0,98297.0,0.3618]
[1739253148827,0.36559202,98298.0,98297.0,0.3628]
[1739253149029,0.213432,98298.0,98297.0,0.3628]
[1739253154542,0.01,98298.0,98297.0,0.3628]
[1739253156938,0.01,98298.0,98297.0,1.1528]
[1739253163049,0.01,98298.0,98297.0,1.16390178]
[1739253164953,0.01,98298.0,98297.0,0.80310178]
[1739253165251,0.01,98298.0,98297.0,1.1528]
[1739253176548,0.01,98298.0,98297.0,1.16383311]
[1739253177564,0.2034222,98303.0,98297.0,1.16383311]
[1739253177758,0.2034222,98303.0,98301.0,0.203425]
[1739253178765,0.2094222,98303.0,98301.0,0.203425]
[1739253179166,0.2114222,98303.0,98301.0,0.204425]
[1739253180256,0.2054222,98303.0,98301.0,0.204425]
[1739253180464,0.2064222,98303.0,98301.0,0.205425]
[1739253180663,0.2064222,98303.0,98302.0,0.01107931]
[1739253181769,0.2054222,98303.0,98302.0,0.01204658]
[1739253181981,0.2034222,98303.0,98302.0,0.01304658]
[1739253182269,0.2034222,98303.0,98302.0,0.37384658]
[1739253183457,0.2034222,98303.0,98302.0,0.01304658]
[1739253183661,0.2034222,98303.0,98302.0,0.3628]
[1739253184057,0.25288524,98303.0,98302.0,0.3628]
[1739253186163,0.04946304,98303.0,98302.0,0.3738512]
[1739253186872,0.04946304,98303.0,98302.0,1.1638512]
[1739253187073,0.15254813,98304.0,98303.0,0.2034216]
[1739253187275,0.15254813,98304.0,98303.0,0.2144728]
[1739253187771,0.15254813,98304.0,98303.0,1.0044728]
[1739253188266,0.15354813,98304.0,98303.0,1.0054728]
[1739253188471,0.15354813,98304.0,98303.0,1.0064728]
[1739253189066,0.15354813,98304.0,98303.0,1.7280728]
[1739253190078,0.15354813,98304.0,98303.0,1.72808884]
[1739253190274,0.15354813,98304.0,98303.0,1.00648884]
[1739253190478,0.15354813,98304.0,98303.0,1.72808884]
[1739253190776,0.15354813,98304.0,98303.0,0.93808884]
[1739253191670,0.001,98304.0,98303.0,0.93808884]
[1739253192669,0.001,98304.0,98303.0,0.93804724]
[1739253194477,0.001,98304.0,98303.0,1.72804391]
[1739253196381,0.001,98304.0,98303.0,1.72809233]
[1739253198585,0.001,98304.0,98303.0,1.72812205]
[1739253200282,0.001,98304.0,98303.0,1.73814779]
[1739253200476,0.001,98304.0,98303.0,1.72704734]
[1739253200680,0.001,98304.0,98303.0,1.73817346]
[1739253200880,0.001,98304.0,98303.0,1.73717346]
[1739253201081,0.001,98304.0,98303.0,1.73725897]
[1739253205292,0.00015267,98307.0,98303.0,1.53383737]
[1739253205485,0.15254813,98315.0,98304.0,0.01121163]
[1739253205685,0.15254813,98315.0,98314.0,0.3608]
[1739253205991,0.234586,98321.0,98317.0,0.2033927]
[1739253206190,0.234586,98321.0,98317.0,0.21460433]
[1739253207290,0.0326,98318.0,98317.0,0.21460433]
[1739253209593,0.0326,98318.0,98317.0,0.21455322]
[1739253211083,0.0326,98318.0,98317.0,0.21455127]
[1739253211287,0.0326,98318.0,98317.0,0.57535127]
[1739253212491,0.0326,98318.0,98317.0,0.57538196]
[1739253215296,0.0326,98318.0,98317.0,0.57550472]
[1739253218006,0.0326,98318.0,98317.0,0.57552265]
[1739253219002,0.0326,98318.0,98317.0,1.36552265]
[1739253219404,0.0326,98318.0,98317.0,1.36554091]
[1739253224315,0.001,98318.0,98317.0,1.36554091]
[1739253225614,0.0001526,98327.0,98326.0,0.2033741]
[1739253225810,0.0001526,98327.0,98326.0,0.57552231]
[1739253226211,0.0001526,98327.0,98326.0,0.57549228]
[1739253226604,0.0001526,98327.0,98326.0,0.57649228]
[1739253227912,0.0001526,98327.0,98326.0,0.57648323]
[1739253231912,0.0001526,98327.0,98326.0,0.5763558]
[1739253233019,0.0001526,98327.0,98326.0,0.5651741]
[1739253238629,0.0001526,98327.0,98326.0,0.2043741]
[1739253238918,0.0001526,98327.0,98326.0,0.5651741]
[1739253239120,0.0001526,98327.0,98326.0,0.3618]
[1739253239121,0.2035247,98327.0,98326.0,0.3618]
[1739253242721,0.2035247,98327.0,98326.0,0.001]
[1739253254936,0.0001526,98327.0,98326.0,0.001]
[1739253255335,0.0001526,98327.0,98326.0,0.01203717]
[1739253256235,0.0001526,98327.0,98326.0,0.01199758]
[1739253258338,0.0001526,98327.0,98326.0,0.001]
[1739253260833,0.0001526,98327.0,98326.0,0.01214421]
[1739253262343,0.0001526,98327.0,98326.0,0.001]
[1739253263247,0.0001526,98327.0,98326.0,0.01210126]
[1739253263547,0.0001526,98327.0,98326.0,0.001]
[1739253265344,0.0001526,98327.0,98326.0,0.3618]
[1739253266349,0.0001526,98327.0,98326.0,0.37289307]
[1739253266643,0.0001526,98327.0,98326.0,0.3618]
[1739253266850,0.0001526,98327.0,98326.0,0.37289327]
[1739253272773,0.0001526,98327.0,98326.0,0.37295023]
[1739253275465,0.0001526,98327.0,98326.0,0.3618]
[1739253275671,0.0001526,98327.0,98326.0,0.37305081]
[1739253279168,0.0001526,98327.0,98326.0,0.3618]
[1739253279368,0.0001526,98327.0,98326.0,0.3733306]
[1739253281378,0.0001526,98327.0,98326.0,0.3733028]
[1739253281577,0.0001526,98327.0,98326.0,0.39162781]
[1739253285577,0.0001526,98327.0,98326.0,0.39062781]
[1739253289683,0.0001526,98327.0,98326.0,0.39121629]
[1739253290784,0.0001526,98327.0,98326.0,0.39116115]
[1739253293688,0.0001526,98327.0,98326.0,0.39121114]
[1739253300191,0.0001526,98327.0,98326.0,0.3608]
[1739253300385,0.0001526,98327.0,98326.0,0.39192706]
[1739253304097,0.2662359,98345.0,98338.0,0.2033494]
[1739253304295,0.0629,98345.0,98338.0,0.23447646]
[1739253304497,0.0629,98345.0,98338.0,1.02447646]
[1739253304995,0.0629,98345.0,98338.0,0.23447646]
[1739253305198,0.15250385,98340.0,98338.0,0.23447646]
[1739253305397,0.15250385,98340.0,98339.0,0.03112706]
[1739253305603,0.15250385,98340.0,98339.0,0.03106919]
[1739253305998,0.15250385,98340.0,98339.0,0.03111959]
[1739253307091,0.00112001,98355.0,98339.0,0.09839959]
[1739253307306,0.24380539,98361.0,98348.0,0.5641272]
[1739253307597,0.04980926,98360.0,98350.0,0.04980926]
[1739253307802,0.04980926,98360.0,98351.0,0.03102625]
[1739253308102,0.04980926,98360.0,98350.0,0.04980926]
[1739253308103,0.04980926,98360.0,98352.0,0.03102625]
[1739253308400,0.04980926,98360.0,98353.0,0.0119688]
[1739253308601,0.04980926,98360.0,98354.0,0.0119688]
[1739253308796,0.2033129,98356.0,98355.0,0.0119688]
[1739253309803,0.2033129,98356.0,98355.0,0.01189311]
[1739253311300,0.2033129,98356.0,98348.0,0.57501144]
[1739253311507,0.2033129,98356.0,98355.0,0.001]
[1739253311812,0.040436,98361.0,98355.0,0.01326733]